bitfinex/quotes_SOLUSD_20260201
["timestamp","ask_amount","ask_price","bid_price","bid_amount"]
[1769908028307,4.30637535,105.09,105.02,0.1]
[1769908028493,4.30637535,105.08,105.02,0.1]
[1769908029537,4.30637535,105.07,105.02,0.1]
[1769908029814,4.27527085,105.08,105.02,0.1]
[1769908029815,4.30637535,105.05,105.02,0.1]
[1769908031505,4.30637535,105.05,105.02,1e-08]
[1769908031706,13.82655813,105.04,105.02,1e-08]
[1769908031891,4.30637535,105.04,105.02,1e-08]
[1769908032097,9.51779332,105.07,105.03,4.26782732]
[1769908032513,13.82325105,105.08,105.03,4.26782732]
[1769908032816,9.51565324,105.09,105.05,4.26782732]
[1769908033209,13.82144208,105.1,105.05,4.26782732]
[1769908033410,13.82144208,105.1,105.02,1e-08]
[1769908033411,4.30637535,105.12,105.07,4.26782732]
[1769908033720,13.81950255,105.12,105.08,4.26782732]
[1769908034014,37.60184653,105.12,105.08,4.26782732]
[1769908034520,4.30637535,105.11,105.07,4.26782732]
[1769908035301,13.82091441,105.11,105.07,4.26782732]
[1769908035821,4.30637535,105.1,105.05,13.78670355]
[1769908036903,9.51453906,105.11,105.07,4.26782732]
[1769908037098,13.82091441,105.11,105.07,4.26782732]
[1769908037306,13.82183492,105.1,105.05,18.83932602]
[1769908037504,4.30637535,105.1,105.06,4.26782732]
[1769908038502,4.30637535,105.09,105.05,13.78679462]
[1769908038707,4.30637535,105.09,105.05,4.26782732]
[1769908038901,4.30637535,105.09,105.05,13.78708645]
[1769908039425,13.82208351,105.09,105.05,13.78708645]
[1769908040617,4.30637535,105.09,105.05,13.78708645]
[1769908041325,4.30637535,105.1,105.06,4.26782732]
[1769908043625,4.30637535,105.09,105.05,74.98708645]
[1769908044736,4.30637535,105.09,105.05,13.78708645]
[1769908045107,13.82204852,105.09,105.05,13.78708645]
[1769908046333,4.30637535,105.09,105.06,4.26782732]
[1769908047132,13.82146584,105.1,105.06,4.26782732]
[1769908047329,4.30637535,105.09,105.04,9.52018278]
[1769908047515,4.30637535,105.09,105.03,9.52075054]
[1769908047831,4.30637535,105.09,105.04,4.26782732]
[1769908048629,33.30560094,105.09,105.03,9.52075054]
[1769908048834,4.30637535,105.08,105.04,4.26782732]
[1769908049833,13.82359083,105.08,105.04,4.26782732]
[1769908050329,4.30637535,105.07,105.03,4.26782732]
[1769908050628,4.30637535,105.07,105.02,1e-08]
[1769908051032,4.26331159,105.04,104.89,4.26782732]
[1769908051234,4.26331159,105.02,104.93,14.28860556]
[1769908051410,5.93429899,105.03,104.97,13.58818604]
[1769908051610,5.93429899,105.03,104.99,4.26782732]
[1769908051815,5.93429899,105.03,105.0,4.26782732]
[1769908052229,15.45550727,105.03,105.0,4.26782732]
[1769908052422,15.45550727,105.03,104.98,4.26782732]
[1769908052812,39.2582303,105.03,104.98,4.26782732]
[1769908053234,4.30637535,105.02,104.9,5.29480892]
[1769908053535,4.30637535,105.02,104.95,18.84839604]
[1769908053716,9.52290258,105.01,104.95,18.84839604]
[1769908053915,4.30637535,105.0,104.95,18.84868256]
[1769908054525,4.30637535,105.0,104.95,9.52832384]
[1769908054719,4.30637535,105.0,104.93,9.52980164]
[1769908054919,4.30637535,105.0,104.93,18.85016036]
[1769908054920,10.24415985,105.0,104.93,18.85016036]
[1769908055120,10.24415985,105.0,104.94,9.52915043]
[1769908055321,10.24415985,105.0,104.96,4.26782732]
[1769908055322,5.9377845,105.0,104.96,4.26782732]
[1769908055624,10.24415985,105.0,104.95,13.79593912]
[1769908055828,5.9377845,105.0,104.97,4.26782732]
[1769908056029,10.25461626,105.05,105.0,1.82320209]
[1769908056439,4.30637535,105.04,105.0,1.82320209]
[1769908056621,5.94824091,105.05,105.0,11.14356081]
[1769908056813,10.25461626,105.05,105.0,11.14356081]
[1769908057013,10.25461626,105.05,105.0,1.82320209]
[1769908057212,4.10213725,105.04,105.0,1.82320209]
[1769908057416,13.62254434,105.04,105.0,1.82320209]
[1769908057723,4.10213725,105.04,105.0,11.34690982]
[1769908057928,4.10213725,105.04,105.0,18.84406645]
[1769908058131,4.10213725,105.04,105.0,9.52370773]
[1769908058325,13.62243065,105.04,105.0,18.84406645]
[1769908058642,4.10213725,105.04,105.0,20.66726854]
[1769908059142,28.28871557,105.1,105.03,9.32035872]
[1769908059338,19.9597863,105.09,105.04,9.32035872]
[1769908059648,10.44413306,105.09,105.05,9.32035872]
[1769908059818,5.94413306,105.09,105.04,18.84049447]
[1769908060518,5.94413306,105.09,105.06,9.32035872]
[1769908060916,4.5,105.13,105.04,23.80045696]
[1769908061121,4.5,105.13,104.98,26.46]
[1769908061439,4.5,105.08,105.03,9.32035872]
[1769908062123,4.5,105.1,105.05,9.32035872]
[1769908062329,4.5,105.1,105.02,33.32698533]
[1769908062330,4.5,105.1,105.06,9.32035872]
[1769908062845,14.01300487,105.12,105.07,9.32035872]
[1769908063045,4.5,105.11,105.07,9.32035872]
[1769908063341,4.5,105.11,105.07,9.51736746]
[1769908063524,4.5,105.1,105.06,18.8384908]
[1769908063834,4.5,105.1,105.07,9.51740551]
[1769908064031,4.5,105.1,105.03,23.80242219]
[1769908064343,4.5,105.1,105.04,9.32035872]
[1769908064636,4.5,105.1,105.03,9.52053919]
[1769908064839,4.5,105.1,105.02,18.84177658]
[1769908065026,4.5,105.1,105.03,9.52108584]
[1769908065226,4.5,105.1,105.02,9.5219521]
[1769908065438,4.5,105.08,105.01,9.32035872]
[1769908065640,4.5,105.08,105.0,9.32035872]
[1769908066243,4.5,105.08,104.99,9.52471663]
[1769908067042,4.5,105.08,104.99,18.84507535]
[1769908067431,4.5,105.07,105.02,9.32035872]
[1769908068433,4.5,105.09,105.03,18.84144793]
[1769908068742,9.51568442,105.09,105.03,9.52108921]
[1769908068946,4.5,105.08,104.98,87.66]
[1769908069127,4.5,105.08,105.01,9.32035872]
[1769908069649,4.5,105.08,105.02,9.32035872]
[1769908069840,4.5,105.08,104.98,87.66]
[1769908070041,4.5,105.08,105.01,9.32035872]
[1769908070243,4.5,105.07,105.02,9.52184832]
[1769908072352,4.5,105.07,105.02,18.84220704]
[1769908072565,4.5,105.06,105.01,9.52262051]
[1769908072738,4.5,105.06,105.0,9.52349774]
[1769908072937,4.5,105.06,105.01,9.52284324]
[1769908073148,14.01711849,105.08,105.02,9.32035872]
[1769908073457,14.01711849,105.08,105.03,9.32035872]
[1769908073950,4.5,105.08,105.03,9.32035872]
[1769908074334,14.01507128,105.1,105.05,18.83963525]
[1769908074849,14.01399262,105.11,105.06,9.32035872]
[1769908076653,4.5,105.1,105.03,33.32381224]
[1769908076856,4.5,105.1,105.06,9.32035872]
[1769908077334,4.5,105.1,105.05,9.32035872]
[1769908079451,4.5,105.1,105.06,18.83820679]
[1769908079632,4.5,105.1,105.06,18.84812998]
[1769908079834,14.01324607,105.12,105.07,9.33028191]
[1769908080455,4.5,105.11,105.07,9.33028191]
[1769908080838,4.5,105.11,105.06,42.64405611]
[1769908081043,4.5,105.11,105.07,9.33028191]
[1769908081236,9.51324607,105.12,105.07,9.33028191]
[1769908081444,4.5,105.13,105.08,9.33028191]
[1769908081445,14.01222669,105.13,105.08,9.33028191]
[1769908081651,10.43229927,105.15,105.09,9.33028191]
[1769908081853,10.43229927,105.15,105.1,9.33028191]
[1769908082054,4.5,105.14,105.06,9.33028191]
[1769908082453,4.5,105.14,105.05,9.33028191]
[1769908082952,4.5,105.12,105.06,9.33028191]
[1769908083737,4.5,105.12,105.07,9.33028191]
[1769908084458,4.5,105.12,105.06,9.33028191]
[1769908084664,4.5,105.12,105.07,9.33028191]
[1769908085557,14.01297757,105.12,105.08,9.51655881]
[1769908086057,4.5,105.11,105.08,9.51655881]
[1769908086356,4.5,105.11,105.06,9.51796217]
[1769908086562,4.5,105.11,105.05,9.51890855]
[1769908086757,4.5,105.11,105.03,26.44]
[1769908086965,4.5,105.11,105.03,35.96060758]
[1769908087662,4.5,105.09,105.03,35.96060758]
[1769908087843,4.5,105.09,105.02,9.52158289]
[1769908089455,4.5,105.07,105.01,33.32955048]
[1769908090667,4.5,105.06,105.01,33.32955048]
[1769908091166,4.5,105.09,105.03,9.33028191]
[1769908092244,4.5,105.08,105.04,9.52018278]
[1769908093358,4.27527085,105.12,105.04,9.52018278]
[1769908093564,4.5,105.1,105.05,9.33028191]
[1769908093966,4.5,105.1,105.04,9.52018278]
[1769908094150,4.5,105.1,105.05,9.33028191]
[1769908094468,14.01516648,105.1,105.05,9.33028191]
[1769908094685,4.5,105.09,105.04,9.33028191]
[1769908094971,4.5,105.09,105.02,42.65726724]
[1769908095154,4.5,105.09,105.03,9.33028191]
[1769908096380,4.5,105.08,105.04,9.52018278]
[1769908097660,9.51650025,105.09,105.04,18.85046469]
[1769908097979,4.5,105.09,105.04,42.65092165]
[1769908099152,5.9354564,105.1,105.06,9.33028191]
[1769908099352,5.9354564,105.1,105.07,9.33028191]
[1769908099654,5.9354564,105.1,105.06,9.33028191]
[1769908099855,5.9354564,105.1,105.08,9.33028191]
[1769908100250,4.5,105.14,105.09,9.33028191]
[1769908100455,4.5,105.14,105.1,9.33028191]
[1769908100668,4.5,105.15,105.11,9.33028191]
[1769908100870,4.5,105.15,105.09,9.33028191]
[1769908101065,4.5,105.15,105.08,9.33028191]
[1769908101252,4.5,105.13,105.08,9.51573301]
[1769908101975,4.5,105.13,105.07,9.51714546]
[1769908102358,4.5,105.13,105.08,9.51653988]
[1769908102557,4.5,105.13,105.07,9.51708353]
[1769908103276,4.5,105.11,105.07,9.51708353]
[1769908104276,4.5,105.11,105.07,18.84736544]
[1769908105750,10.43090283,105.15,105.07,33.31074489]
[1769908105952,10.43090283,105.15,105.1,9.33028191]
[1769908106561,10.43090283,105.15,105.11,9.33028191]
[1769908107276,19.94113901,105.15,105.11,9.51384264]
[1769908107681,10.43090283,105.15,105.11,9.51384264]
[1769908108760,4.5,105.14,105.1,9.51442976]
[1769908109484,4.5,105.13,105.07,9.51719421]
[1769908110882,4.5,105.11,105.07,9.51719421]
[1769908113476,4.5,105.11,105.07,18.84747612]
[1769908114076,4.5,105.11,105.07,42.64113748]
[1769908114703,4.5,105.12,105.09,9.51565324]
[1769908119991,4.5,105.14,105.09,42.63506827]
[1769908120175,4.5,105.14,105.1,9.33028191]
[1769908120491,4.5,105.14,105.11,9.51384264]
[1769908120889,10.43090283,105.15,105.11,42.62873115]
[1769908122282,4.5,105.17,105.14,18.84118713]
[1769908122590,4.5,105.17,105.14,9.51090522]
[1769908122769,4.5,105.17,105.14,18.84118713]
[1769908123591,4.5,105.17,105.14,42.61900717]
[1769908123766,9.50389659,105.22,105.15,9.33028191]
[1769908123969,9.50389659,105.22,105.15,4.13021971]
[1769908124179,9.50389659,105.22,105.14,37.41894497]
[1769908124772,33.26363808,105.22,105.14,46.74922688]
[1769908125088,33.26363808,105.22,105.15,13.46050162]
[1769908125699,9.50389659,105.22,105.15,13.46050162]
[1769908125999,4.2539926,105.21,105.16,13.46050162]
[1769908126492,9.50498065,105.21,105.16,13.63873989]
[1769908126996,9.50425648,105.22,105.17,13.46050162]
[1769908127180,9.50425648,105.22,105.17,4.13021971]
[1769908127789,4.35417774,105.21,105.17,13.63813203]
[1769908128283,4.35417774,105.2,105.16,13.63913209]
[1769908128595,4.35417774,105.2,105.17,13.63852494]
[1769908130397,4.35417774,105.2,105.16,9.50902342]
[1769908130577,4.35417774,105.19,105.16,9.50902342]
[1769908131992,4.35417774,105.19,105.14,61.2]
[1769908132696,4.35417774,105.18,105.15,9.50984464]
[1769908133286,4.35417774,105.19,105.15,13.64006435]
[1769908137100,4.35417774,105.18,105.15,9.50984464]
[1769908138501,4.35417774,105.18,105.15,13.64006435]
[1769908139998,4.35417774,105.2,105.17,4.13021971]
[1769908140392,4.35417774,105.22,105.17,4.13021971]
[1769908140704,4.35417774,105.22,105.18,4.13021971]
[1769908142187,4.35417774,105.21,105.18,9.50719426]
[1769908142387,4.35417774,105.21,105.17,35.92804571]
[1769908143402,4.35417774,105.2,105.17,9.50804571]
[1769908144506,4.35417774,105.2,105.16,9.50906832]
[1769908145010,4.35417774,105.2,105.16,13.63928803]
[1769908145818,4.35417774,105.2,105.17,4.13021971]
[1769908146802,4.35417774,105.21,105.17,4.13021971]
[1769908147191,4.35417774,105.21,105.17,65.33021971]
[1769908147391,4.35417774,105.21,105.16,42.59255171]
[1769908147392,4.24291925,105.23,105.19,4.23299449]
[1769908147590,4.24291925,105.22,105.17,13.74108399]
[1769908147801,4.24291925,105.21,105.17,13.74108399]
[1769908147995,4.24291925,105.21,105.16,9.50903198]
[1769908149212,4.24291925,105.21,105.15,13.74276999]
[1769908149605,4.24291925,105.2,105.16,9.50907872]
[1769908150708,4.24291925,105.2,105.16,13.74207321]
[1769908153225,4.24291925,105.2,105.16,74.94207321]
[1769908154207,4.24291925,105.19,105.16,74.94207321]
[1769908154529,4.24291925,105.19,105.16,61.2]
[1769908154704,4.24291925,105.19,105.13,13.74450946]
[1769908156007,4.20049005,105.17,105.13,13.74450946]
[1769908156216,4.20049005,105.17,105.14,4.23299449]
[1769908159820,4.20049005,105.17,105.14,13.74410831]
[1769908160011,13.70800098,105.18,105.14,13.74410831]
[1769908160607,4.20049005,105.18,105.15,4.23299449]
[1769908161509,9.50702907,105.19,105.15,13.74297973]
[1769908161705,9.50702907,105.19,105.16,4.23299449]
[1769908161923,9.50570342,105.2,105.16,4.23299449]
[1769908163529,12.58035586,105.2,105.16,13.74216353]
[1769908163822,3.07465244,105.19,105.16,4.23299449]
[1769908164428,3.07465244,105.19,105.15,60.38753418]
[1769908164834,12.58160865,105.19,105.15,64.62052867]
[1769908165130,3.07465244,105.18,105.15,64.62052867]
[1769908166518,3.07465244,105.17,105.13,4.23299449]
[1769908167027,3.07465244,105.17,105.11,110.39085229]
[1769908167028,3.07465244,105.17,105.12,4.23299449]
[1769908167612,12.58321324,105.17,105.13,13.74502721]
[1769908168006,3.07465244,105.17,105.13,13.74502721]
[1769908169431,12.58318568,105.17,105.13,13.74502721]
[1769908171819,3.07465244,105.16,105.13,13.74502721]
[1769908172226,3.07465244,105.16,105.13,9.51203272]
[1769908172425,3.07465244,105.16,105.13,13.74502721]
[1769908173240,3.07465244,105.16,105.13,4.23299449]
[1769908177251,3.07465244,105.16,105.12,60.39037425]
[1769908177438,3.07465244,105.16,105.12,64.51123195]
[1769908177830,3.07465244,105.15,105.12,4.1208577]
[1769908178227,3.07465244,105.15,105.11,40.05431184]
[1769908179040,12.58546329,105.15,105.11,40.05431184]
[1769908179438,9.509994,105.16,105.12,4.1208577]
[1769908179636,9.50881914,105.17,105.13,4.1208577]
[1769908179938,9.50881914,105.17,105.12,30.5408577]
[1769908180440,3.07465244,105.16,105.12,30.5408577]
[1769908181138,3.07465244,105.15,105.12,4.1208577]
[1769908182222,3.07465244,105.15,105.12,13.63361384]
[1769908182424,12.58401599,105.16,105.12,13.63361384]
[1769908183149,12.58401599,105.16,105.12,4.1208577]
[1769908183842,3.07465244,105.15,105.12,4.1208577]
[1769908185933,3.07465244,105.15,105.12,13.63358766]
[1769908189241,3.07465244,105.15,105.12,9.51272996]
[1769908189427,3.07465244,105.15,105.11,91.28744004]
[1769908190143,3.07465244,105.15,105.12,4.47618495]
[1769908190522,12.58216337,105.18,105.12,4.47618495]
[1769908190723,3.07465244,105.17,105.13,4.47618495]
[1769908192260,3.07465244,105.16,105.13,4.47618495]
[1769908192638,12.58357225,105.17,105.13,4.47618495]
[1769908192839,3.07465244,105.16,105.12,4.47618495]
[1769908193058,3.07465244,105.16,105.11,4.47618495]
[1769908193235,3.07465244,105.16,105.1,26.42]
[1769908193557,3.07465244,105.16,105.07,4.47618495]
[1769908194258,3.07465244,105.14,105.08,13.9923699]
[1769908194644,3.07465244,105.14,105.09,4.47618495]
[1769908195153,3.07465244,105.14,105.08,13.9923699]
[1769908196126,3.07465244,105.14,105.08,9.51618495]
[1769908196328,3.07465244,105.12,105.08,13.9923699]
[1769908196945,3.07465244,105.12,105.08,9.51618495]
[1769908197147,3.07465244,105.12,105.07,30.89618495]
[1769908198243,3.07465244,105.11,105.07,40.41358947]
[1769908200261,12.58855275,105.11,105.08,4.47618495]
[1769908200456,12.58855275,105.11,105.07,40.41358947]
[1769908200665,12.58855275,105.11,105.08,4.47618495]
[1769908200841,3.07465244,105.11,105.08,4.47618495]
[1769908201673,12.58790613,105.12,105.08,4.47618495]
[1769908202165,3.07465244,105.11,105.08,4.47618495]
[1769908202461,3.07465244,105.1,105.05,0.1]
[1769908202659,3.07465244,105.1,105.05,4.57618495]
[1769908203664,12.58886704,105.11,105.07,4.47618495]
[1769908204165,3.07465244,105.11,105.08,4.47618495]
[1769908204361,3.07465244,105.14,105.09,4.47618495]
[1769908205569,23.77258308,105.17,105.09,4.47618495]
[1769908205570,12.58397157,105.16,105.1,4.47618495]
[1769908205770,12.58335711,105.17,105.11,4.47618495]
[1769908206357,12.58335711,105.17,105.13,4.47618495]
[1769908206551,3.07465244,105.17,105.13,4.47618495]
[1769908206749,12.58162726,105.19,105.14,4.47618495]
[1769908209174,12.58162726,105.19,105.15,13.56088775]
[1769908209363,3.07465244,105.19,105.16,4.05066426]
[1769908209860,3.07465244,105.19,105.15,9.51022349]
[1769908209861,3.07465244,105.18,105.13,13.56230306]
[1769908210367,3.07465244,105.18,105.14,4.05066426]
[1769908210564,3.07465244,105.18,105.14,13.56177255]
[1769908210766,12.58147608,105.19,105.15,4.05066426]
[1769908210962,12.58057152,105.2,105.15,4.05066426]
[1769908211774,12.58057152,105.2,105.16,4.05066426]
[1769908212179,3.07465244,105.19,105.13,13.5623065]
[1769908212861,3.07465244,105.19,105.11,13.56401199]
[1769908213060,3.07465244,105.19,105.1,30.47066426]
[1769908213274,3.07465244,105.19,105.1,39.98461403]
[1769908213468,3.07465244,105.19,105.1,35.93394977]
[1769908213667,3.07465244,105.17,105.11,13.56449778]
[1769908214383,3.07465244,105.17,105.11,4.05066426]
[1769908214874,3.07465244,105.17,105.12,4.05066426]
[1769908216073,12.58397157,105.16,105.12,4.05066426]
[1769908217864,3.07465244,105.15,105.12,4.05066426]
[1769908218781,3.07465244,105.16,105.12,4.05066426]
[1769908220282,9.51022349,105.15,105.12,4.05066426]
[1769908221593,12.58487593,105.15,105.11,4.05066426]
[1769908222084,3.07465244,105.14,105.11,4.05066426]
[1769908223578,12.58581215,105.14,105.11,4.05066426]
[1769908224086,3.07465244,105.13,105.1,9.51420193]
[1769908224290,3.07465244,105.13,105.1,64.4427385]
[1769908224469,3.07465244,105.14,105.1,64.4427385]
[1769908224892,3.07465244,105.14,105.1,60.39207424]
[1769908225184,3.07465244,105.14,105.11,4.05066426]
[1769908227484,12.58660982,105.14,105.1,54.92853657]
[1769908228189,3.07465244,105.13,105.1,4.05066426]
[1769908228689,12.58683716,105.13,105.1,4.05066426]
[1769908230793,12.58683716,105.13,105.09,4.05066426]
[1769908231493,102.7,105.17,105.1,4.05066426]
[1769908231494,36.358825,105.16,105.1,4.05066426]
[1769908231793,36.358825,105.16,105.11,4.05066426]
[1769908232289,3.07465244,105.15,105.11,4.05066426]
[1769908232781,12.58517804,105.15,105.11,4.05066426]
[1769908233582,3.07465244,105.14,105.11,4.05066426]
[1769908234798,12.58636964,105.14,105.11,4.05066426]
[1769908239192,9.5117172,105.14,105.11,4.05066426]
[1769908239698,12.5852924,105.15,105.12,4.31044089]
[1769908241294,3.07465244,105.16,105.12,4.31044089]
[1769908241801,3.07465244,105.16,105.1,13.82481794]
[1769908242097,3.07465244,105.16,105.11,4.31044089]
[1769908243606,33.28115432,105.17,105.09,60.39323309]
[1769908243607,3.07465244,105.14,105.1,4.24812577]
[1769908243779,3.07465244,105.14,105.07,27.27535695]
[1769908243780,3.07465244,105.14,105.08,4.24812577]
[1769908244897,3.07465244,105.14,105.07,55.12599808]
[1769908245088,3.07465244,105.14,105.06,143.84138465]
[1769908245089,3.07465244,105.13,105.06,143.84138465]
[1769908245596,3.07465244,105.13,105.07,4.24812577]
[1769908245786,3.07465244,105.11,105.07,4.24812577]
[1769908248001,12.58895399,105.11,105.07,4.24812577]
[1769908249701,9.51430155,105.11,105.08,4.24812577]
[1769908250291,3.07465244,105.11,105.08,4.24812577]
[1769908252010,3.07465244,105.11,105.06,4.24812577]
[1769908252500,12.58940029,105.1,105.06,4.24812577]
[1769908252797,3.07465244,105.09,105.05,50.97787231]
[1769908253000,3.07465244,105.09,105.05,4.34812577]
[1769908254093,3.07465244,105.09,105.04,4.24812577]
[1769908254483,3.07465244,105.07,105.04,4.24812577]
[1769908254689,3.07465244,105.07,105.02,9.62193583]
[1769908254892,3.07465244,105.07,104.99,50.87787231]
[1769908255102,3.07465244,105.07,104.98,9.52517345]
[1769908255309,4.27527085,105.05,104.96,141.30219072]
[1769908255494,4.1911496,105.04,104.96,141.30219072]
[1769908255694,4.1911496,105.04,104.97,9.52600803]
[1769908255908,4.1911496,105.04,104.98,9.52555937]
[1769908256394,13.71223881,105.03,104.97,9.52653138]
[1769908256603,13.71223881,105.03,104.98,4.24812577]
[1769908257288,4.1911496,105.02,104.98,4.24812577]
[1769908257497,13.71324425,105.02,104.99,4.24812577]
[1769908259602,4.1911496,105.01,104.97,13.77465715]
[1769908259904,13.71324425,105.02,104.98,4.24812577]
[1769908260582,9.52209465,105.02,104.98,4.24812577]
[1769908260787,9.52147212,105.03,104.98,4.24812577]
[1769908260989,4.1911496,105.08,105.01,4.24812577]
[1769908261489,4.1911496,105.07,105.01,4.24812577]
[1769908261739,4.1911496,105.06,105.01,4.24812577]
[1769908263312,37.50861746,105.05,105.01,4.24812577]
[1769908263518,4.1911496,105.04,105.01,4.24812577]
[1769908263690,4.1911496,105.04,105.0,4.24812577]
[1769908265407,4.1911496,105.02,104.98,35.96546877]
[1769908265613,4.1911496,105.02,104.97,4.24812577]
[1769908265792,4.1911496,105.02,104.98,4.24812577]
[1769908265994,4.1911496,105.02,104.99,4.24812577]
[1769908267414,13.71321868,105.02,104.99,4.24812577]
[1769908267918,4.10689362,105.0,104.9,4.39828172]
[1769908268101,4.10689362,104.97,104.91,4.06974442]
[1769908268514,4.10689362,105.01,104.94,4.06974442]
[1769908268703,37.43395222,105.02,104.94,4.06974442]
[1769908268903,23.80166918,105.04,104.97,4.06974442]
[1769908269100,23.80166918,105.04,104.98,4.06974442]
[1769908269299,4.1483774,105.05,104.99,4.06974442]
[1769908269618,4.1483774,105.05,105.0,4.06974442]
[1769908269994,9.52018278,105.04,105.0,4.06974442]
[1769908270810,4.1483774,105.07,105.0,4.06974442]
[1769908271011,4.1483774,105.1,105.02,4.06974442]
[1769908271212,4.1483774,105.1,105.03,4.06974442]
[1769908271713,4.1483774,105.08,105.04,4.06974442]
[1769908271909,33.29976437,105.11,105.04,4.06974442]
[1769908272103,37.44814177,105.11,105.05,4.06974442]
[1769908272509,9.51293759,105.12,105.06,9.33734678]
[1769908272693,9.51293759,105.12,105.07,4.06974442]
[1769908272894,13.66131499,105.12,105.07,4.06974442]
[1769908274213,4.1483774,105.11,105.06,4.06974442]
[1769908274817,4.1483774,105.11,105.06,13.58805308]
[1769908275215,4.1483774,105.11,105.07,4.06974442]
[1769908275608,4.1483774,105.11,105.06,4.06974442]
[1769908275808,9.51474785,105.1,105.06,4.06974442]
[1769908276002,4.1483774,105.11,105.07,4.06974442]
[1769908276207,4.1483774,105.12,105.07,4.06974442]
[1769908277806,13.66222004,105.11,105.07,4.06974442]
[1769908278718,9.51384264,105.11,105.08,4.06974442]
[1769908279111,13.66160078,105.12,105.08,4.06974442]
[1769908279320,4.1483774,105.12,105.08,4.06974442]
[1769908279523,9.51238938,105.13,105.08,4.06974442]
[1769908280120,9.51238938,105.13,105.09,4.06974442]
[1769908281616,9.51238938,105.13,105.09,13.58534246]
[1769908282118,4.1483774,105.14,105.1,4.06974442]
[1769908282335,4.1483774,105.15,105.1,4.06974442]
[1769908282519,4.1483774,105.14,105.1,4.06974442]
[1769908283202,13.65931555,105.15,105.11,4.06974442]
[1769908284624,4.1483774,105.14,105.09,4.06974442]
[1769908284808,4.1483774,105.14,105.1,4.06974442]
[1769908285008,4.1483774,105.14,105.11,4.06974442]
[1769908286231,4.1483774,105.15,105.11,4.06974442]
[1769908286408,4.1483774,105.15,105.1,13.58442928]
[1769908287404,14.46762708,105.14,105.1,13.58442928]
[1769908287602,14.46762708,105.14,105.11,4.06974442]
[1769908288820,4.95636832,105.14,105.12,4.06974442]
[1769908289121,4.1483774,105.17,105.13,4.06974442]
[1769908289323,4.95494603,105.18,105.13,4.06974442]
[1769908289723,13.65534431,105.19,105.13,4.06974442]
[1769908290426,4.1483774,105.19,105.13,4.06974442]
[1769908290622,4.1483774,105.19,105.13,13.4070912]
[1769908290827,13.65447972,105.2,105.16,4.06974442]
[1769908291823,4.95407687,105.21,105.17,4.06974442]
[1769908292431,13.65279151,105.22,105.17,4.06974442]
[1769908292635,4.95568813,105.2,105.17,4.06974442]
[1769908293014,9.10406553,105.2,105.16,9.50888526]
[1769908293218,4.1483774,105.19,105.15,13.57959776]
[1769908293514,4.1483774,105.19,105.16,13.57892734]
[1769908293730,9.10406553,105.2,105.16,13.57892734]
[1769908294130,4.95568813,105.2,105.17,4.06974442]
[1769908294620,9.10406553,105.2,105.15,13.57942083]
[1769908295023,4.1483774,105.19,105.15,13.57942083]
[1769908296835,13.65557595,105.19,105.15,4.06974442]
[1769908297133,4.1483774,105.19,105.15,13.57995392]
[1769908297345,18.55090353,105.2,105.16,4.11415381]
[1769908298038,4.08919333,105.19,105.15,4.11415381]
[1769908298338,18.55090353,105.2,105.16,4.11415381]
[1769908298715,4.95568813,105.2,105.17,13.62256875]
[1769908299129,4.95568813,105.2,105.18,4.11415381]
[1769908299328,14.46140217,105.2,105.17,4.11415381]
[1769908300429,4.08919333,105.19,105.15,9.51001011]
[1769908300735,4.08919333,105.19,105.15,13.62416392]
[1769908302132,4.46887819,105.18,105.14,13.72648182]
[1769908302517,4.46887819,105.18,105.13,9.51166195]
[1769908302721,4.46887819,105.18,105.13,13.72731349]
[1769908303228,4.46887819,105.17,105.13,13.72731349]
[1769908303624,4.46887819,105.17,105.12,9.51264431]
[1769908304226,4.46887819,105.17,105.09,4.21565154]
[1769908304625,4.46887819,105.17,105.09,13.73093457]
[1769908304825,4.46887819,105.16,105.08,13.73193051]
[1769908305444,4.46887819,105.14,105.08,13.73193051]
[1769908306846,4.46887819,105.14,105.09,4.21565154]
[1769908308341,13.98091091,105.13,105.09,4.21565154]
[1769908309543,9.51203272,105.13,105.09,4.21565154]
[1769908309853,4.46887819,105.12,105.08,13.73193051]
[1769908310749,4.46887819,105.12,105.09,4.21565154]
[1769908311043,4.46887819,105.14,105.09,4.21565154]
[1769908311228,13.98005672,105.14,105.09,4.21565154]
[1769908311548,4.46887819,105.13,105.1,4.21565154]
[1769908311745,13.98005672,105.14,105.1,4.21565154]
[1769908313549,13.98005672,105.14,105.1,13.73039517]
[1769908313750,4.46887819,105.13,105.1,13.73039517]
[1769908315330,13.98094116,105.13,105.09,64.60882785]
[1769908316255,13.98094116,105.13,105.09,55.09352385]
[1769908317355,13.98094116,105.13,105.09,4.21565154]
[1769908320265,4.46887819,105.13,105.09,13.73062415]
[1769908320856,4.46887819,105.13,105.1,4.21565154]
[1769908321061,4.46887819,105.12,105.09,13.73062415]
[1769908321639,13.98092365,105.13,105.1,4.21565154]
[1769908322054,13.98092365,105.13,105.08,50.87787231]